Cogmind - Beta 13 @@@ ROGUE MODE // 2024.04.14 @ 17:52:06 Player: NikedNOGsing_in_can't Result: Destroyed by Y-45 Defender with Heavy Assault Rifle Performance ------------- Evolutions (1) 500 Regions Visited (2) 400 Robots Destroyed (31) 155 Value Destroyed (540) 540 Prototype IDs (1) 20 Alien Tech Used (0) 0 Bonus (0) 0 TOTAL SCORE: 1615 Bonus ------- None Cogmind --------- Core Integrity 0/400 Matter 167/300 Energy 133/280 System Corruption 0% Temperature Cool (27) Movement Core (600) Ox11 Location -9/Materials Parts ------- > --- POWER (1) -------- Heavy Ion Engine > --- PROPULSION (3) --- (None) > --- UTILITY (3) ------ Large Storage Unit Field Recycling Unit > --- WEAPON (2) ------- (None) > --- INVENTORY (15) --- Medium Storage Unit Sensor Array Signal Interpreter Improved Terrain Scanner Terrain Scan Processor Transport Network Coupler Improved Targeting Computer Peak State ------------ > --- POWER ------------ Light Ion Engine > --- PROPULSION ------- Light Treads Light Treads Wheel > --- UTILITY ---------- Large Storage Unit Structural Scanner Seismic Detector > --- WEAPON ----------- Particle Cannon Mining Laser > --- INVENTORY -------- Medium Storage Unit Sensor Array Signal Interpreter Improved Terrain Scanner Terrain Scan Processor Transport Network Coupler Improved Targeting Computer Field Recycling Unit Assault Rifle Assault Rifle Assault Rifle Assault Rifle [Rating: 11] Favorites ----------- Power Light Ion Engine Engine Light Ion Engine Propulsion Light Treads Treads Light Treads Wheel Wheel Utility Seismic Detector Device Seismic Detector Storage Large Storage Unit Processor Improved Targeting Computer Weapon Assault Rifle Energy Gun Small Laser Energy Cannon Particle Cannon Ballistic Gun Assault Rifle Ballistic Cannon Light Cannon Launcher Grenade Launcher Special Weapon Mining Laser Build | -11 -10 -9 ------- Run | Yrd Mat Mat Slots Evolved 2 | . . 2 Power . | . . . Propulsion 1 | . . 1 Utility 1 | . . 1 Weapon . | . . . Parts Attached 63 | 7 38 18 Power 4 | 1 2 1 Engine 4 | 1 2 1 Core . | . . . Reactor . | . . . Propulsion 11 | 2 6 3 Treads 8 | 2 4 2 Leg . | . . . Wheel 3 | . 2 1 Hover . | . . . Flight . | . . . Utility 10 | 2 5 3 Device 4 | 1 1 2 Storage 4 | 1 3 . Processor 2 | . 1 1 Hackware . | . . . Protection . | . . . Artifact . | . . . Weapon 38 | 2 25 11 Energy Gun 1 | 1 . . Energy Cannon 3 | . . 3 Ballistic Gun 18 | 1 12 5 Ballistic Cannon 3 | . 3 . Launcher 6 | . 6 . Special Weapon 7 | . 4 3 Impact Weapon . | . . . Slashing Weapon . | . . . Piercing Weapon . | . . . Special Melee Weapon . | . . . Unidentified Prototypes 1 | . . 1 Parts Lost 14 | . 3 11 Power 2 | . 1 1 Propulsion 5 | . 1 4 Utility 2 | . . 2 Weapon 5 | . 1 4 Highest Loss Streak 11 | . 2 11 To Critical Strikes . | . . . Average Slot Usage (%) 96 | . 99 91 Engine 12 | . 13 10 Treads 23 | . 25 21 Wheel 3 | . 2 5 Device 17 | . 14 21 Storage 12 | . 14 11 Energy Gun 1 | . 2 . Energy Cannon 2 | . . 6 Ballistic Gun 15 | . 17 13 Ballistic Cannon 2 | . 3 . Launcher 1 | . 2 . Special Weapon 1 | . 1 1 Naked Turns . | . . . Heaviest Build 91 | 13 91 37 Greatest Support 40 | 40 40 40 Greatest Overweight (x) 12 | . 9 12 Average Overweight (x) . | . . . Largest Inventory Capacity 25 | 8 25 15 Average Capacity 14 | 7 14 15 Most Carried 15 | 7 14 15 Average Carried 9 | 3 8 12 Final Capacity 15 | 8 15 15 Final Carried 14 | 6 14 7 Class Distribution -------------------- 82% | Mutant 17% | Scavenger-Mutant Dominant Class ---------------- Mutant | -10/Materials Mutant | -9/Materials Resources | -11 -10 -9 ----------- Run | Yrd Mat Mat Matter Collected 938 | 275 439 224 Remotely . | . . . Salvage Created 972 | 121 481 370 Parts 59 | 9 30 20 Haulers Intercepted 3 | . 2 1 Recyclers Shooed 3 | . 2 1 Parts Field Recycled . | . . . Retrieved Matter . | . . . Parts Self-Destructed . | . . . Prevented . | . . . Kills | -11 -10 -9 ------- Run | Yrd Mat Mat Combat Hostiles Destroyed 16 | . 10 6 Guns 8 | . 4 4 Cannons 4 | . 2 2 AOE 4 | . 4 . Classes Destroyed 8 | 2 6 . Worker 3 | . 1 2 Builder 1 | . 1 . Tunneler 2 | 2 . . Hauler 3 | . 2 1 Recycler 3 | 1 1 1 Watcher 3 | . 2 1 Swarmer 6 | . 3 3 Grunt 10 | . 7 3 Best Kill Streak 4 | 3 4 4 Combat Bots Only 3 | . 3 3 Max Kills in Single Turn 4 | 1 4 1 Gunslinging . | . . . Exploded 2 | . 2 . Melee . | . . . Uniques/NPCs Destroyed . | . . . Combat | -11 -10 -9 -------- Run | Yrd Mat Mat Hostile Shots Fired 176 | . 71 105 Missed 36 | . 13 23 Damage Taken 2327 | . 917 1410 Core 568 | . 168 400 Absorbed by Shields . | . . . Core Remaining (%) 66 | 100 32 . Volleys Fired 98 | 5 53 40 Largest 2 | 2 2 2 Hottest 100 | 60 100 100 Shots Fired 164 | 10 89 65 Gun 113 | 10 70 33 Cannon 30 | . 6 24 Launcher 7 | . 7 . Special 14 | . 6 8 Kinetic 114 | 5 76 33 Thermal 43 | 5 6 32 Explosive 7 | . 7 . Electromagnetic . | . . . Robot Hit Streak 8 | 6 8 6 Robot Miss Streak 5 | 3 5 5 Penetration Max . | . . . Secondary Targets . | . . . Shots Hit Robots 92 | 6 50 36 Core Hits 53 | 5 32 16 Critical Kills . | . . . Critical Parts Destroyed . | . . . Critical Strikes . | . . . Melee Attacks . | . . . Impact . | . . . Slashing . | . . . Piercing . | . . . Sneak Attacks . | . . . Combat Hostiles . | . . . Follow-up Attacks . | . . . Damage Inflicted 1674 | 67 979 628 Guns 781 | 67 436 278 Cannons 409 | . 69 340 Explosions 474 | . 474 . Melee . | . . . Ramming 10 | . . 10 Kinetic 806 | 23 505 278 Thermal 384 | 44 . 340 Explosive 474 | . 474 . Electromagnetic . | . . . Impact . | . . . Slashing . | . . . Piercing . | . . . Highest Corruption . | . . . Average Corruption . | . . . Corruption Purged . | . . . Corruption Blocked . | . . . Overload Shots . | . . . Overflow Damage 19 | . 11 8 Projectiles 8 | . . 8 Explosions 11 | . 11 . Melee . | . . . Knockbacks 1 | . 1 . Impact . | . . . Kinetic 1 | . 1 . Secondary . | . . . Self-Inflicted Damage 33 | . 33 . Shots 3 | . 3 . Rammed 4 | . . 4 Targets Rammed 4 | . . 4 Kicked . | . . . Crushed . | . . . Highest Temperature 99 | 20 40 99 Average Temperature 20 | 15 11 25 Received Heat Transfer 636 | . 306 330 Siege Activations . | . . . Robots Corrupted . | . . . Combat Hostiles . | . . . Parts Fried . | . . . Impact Corruptions . | . . . Robots Melted . | . . . Combat Hostiles . | . . . Parts Melted . | . . . Heat Transferred 692 | 100 . 592 Parts Sabotaged . | . . . Parts Stolen . | . . . Parts Stripped . | . . . Power Chain Reactions . | . . . Alert | -11 -10 -9 ------- Run | Yrd Mat Mat Peak Influence 180 | 15 180 179 Initial 9 | . 9 6 Average 80 | 5 98 64 Maximum Alert Level . | . . . Low Security (%) 100 | 100 100 100 Level 1 . | . . . Level 2 . | . . . Level 3 . | . . . Level 4 . | . . . Level 5 . | . . . High Security . | . . . Max Security . | . . . Squads Dispatched 3 | . 3 . Investigation . | . . . Extermination . | . . . Reinforcement 3 | . 3 . Assault . | . . . Garrison . | . . . Intercept . | . . . Searches Triggered . | . . . Construction Impeded . | . . . Haulers Reinforced . | . . . Active Scanning Responses . | . . . Cargo Convoy Interrupts . | . . . Stealth | -11 -10 -9 --------- Run | Yrd Mat Mat Distress Signals 6 | . 2 4 Communications Jammed . | . . . Distress Signals . | . . . Times Spotted 45 | . 21 24 Peak Tracking Total 8 | . 5 8 Tactical Retreats 5 | . 1 4 Traps | -11 -10 -9 ------- Run | Yrd Mat Mat Traps Triggered 1 | . 1 . Indirectly . | . . . Trap Hack Attempts . | . . . Triggered . | . . . Disarmed . | . . . Reprogrammed . | . . . Reused . | . . . Traps Extracted . | . . . Installed . | . . . Triggered . | . . . Machines | -11 -10 -9 ---------- Run | Yrd Mat Mat Machines Disabled 2 | . . 2 Max in Single Turn 1 | . . 1 Machines Repaired . | . . . Machines Dismantled . | . . . Machines Sabotaged . | . . . Overloaded Fab Kills . | . . . Hacking | -11 -10 -9 --------- Run | Yrd Mat Mat Machines Accessed 7 | . 4 3 Terminals 7 | . 4 3 Fabricators . | . . . Repair Stations . | . . . Recycling Units . | . . . Scanalyzers . | . . . Garrison Access . | . . . Total Hacks 21 | . 12 9 Successful 10 | . 4 6 Failed 11 | . 8 3 Catastrophic 1 | . . 1 Database Lockouts . | . . . Manual 14 | . 6 8 Terminals 21 | . 12 9 Fabricators . | . . . Repair Stations . | . . . Recycling Units . | . . . Scanalyzers . | . . . Garrison Access . | . . . Terminal Hacks 6 | . 3 3 Robot Analysis 2 | . 2 . Branch Access Points 1 | . . 1 Locate Traps 1 | . . 1 Hauler Manifests 2 | . 1 1 Fabricator Hacks . | . . . Repair Station Hacks . | . . . Recycling Unit Hacks . | . . . Scanalyzer . | . . . Garrison Access Hacks . | . . . Unauthorized Hacks 4 | . 1 3 Terminals 4 | . 1 3 Botnet 4 | . 1 3 Fabricators . | . . . Repair Stations . | . . . Recycling Units . | . . . Scanalyzers . | . . . Garrison Access . | . . . Data Cores Recovered . | . . . Used . | . . . Hacking Detections 7 | . 4 3 Full Trace Events . | . . . Feedback Events . | . . . Feedback Blocked . | . . . Robot Schematics Acquired . | . . . Robots Built . | . . . Authchips . | . . . Time . | . . . Total Robot Build Rating . | . . . Part Schematics Acquired . | . . . Parts Built . | . . . Authchips . | . . . Time . | . . . Total Part Build Rating . | . . . Parts Repaired . | . . . Time . | . . . Parts Recycled . | . . . Recycled Matter . | . . . Retrieved Matter . | . . . Retrieved Components . | . . . Parts Scanalyzed . | . . . Part Schematics Acquired . | . . . Parts Damaged . | . . . Bothacking | -11 -10 -9 ------------ Run | Yrd Mat Mat Used RIF Installer . | . . . Robots Hacked . | . . . Non-combat . | . . . Combat . | . . . Robot Hacks Applied . | . . . Relay Couplers Released . | . . . Fabnet Peak Effective % . | . . . Robots Rewired . | . . . Allies Hacked . | . . . Hacks Repelled . | . . . Allies | -11 -10 -9 -------- Run | Yrd Mat Mat Total Allies . | . . . Largest Group . | . . . Highest-Rated Group . | . . . Highest-Rated Ally . | . . . Total Orders . | . . . Ally Attacks . | . . . Total Damage . | . . . Kills . | . . . Allies Corrupted . | . . . Allies Melted . | . . . Intel | -11 -10 -9 ------- Run | Yrd Mat Mat Robot Analysis Total 2 | . 2 . Derelict Logs Recovered . | . . . Drone Launches . | . . . Drone Recoveries . | . . . Exploration | -11 -10 -9 ------------- Run | Yrd Mat Mat Turns Passed 2246 | 113 1234 899 Spaces Moved 909 | 52 537 320 Core 5 | 2 . 3 Treads 749 | 50 463 236 Legs . | . . . Wheels 155 | . 74 81 Hover . | . . . Flight . | . . . Fastest Speed 50 | 50 95 110 Average Speed 161 | 155 164 157 Slowest Speed 650 | 160 320 650 Overloaded Moves . | . . . Propulsion Burnouts . | . . . Robots Hopped . | . . . Cave-ins Triggered 1 | . 1 . Exploration Rate (%) 32 | 4 79 13 Regions Visited 2 Branch Regions . Pre-discovered Areas . | . . . Known Exits Taken . | . . . Unknown Exits Taken 2 | 1 1 . Scrap Searched . | . . . Spaces Dug 12 | . 6 6 Terrain Destroyed 55 | . 49 6 Melee . | . . . Projectile 12 | . 6 6 AOE 43 | . 43 . Terrain Rammed . | . . . Walls Destroyed . | . . . Machines Disabled . | . . . Actions | -11 -10 -9 --------- Run | Yrd Mat Mat Total 1487 | 72 786 629 Wait 364 | 2 125 237 Move 907 | 51 536 320 Hop . | . . . Pick Up 32 | 7 20 5 Fast Attach 10 | 6 2 2 Attach 11 | 1 2 8 Detach 2 | . 1 1 Swap 42 | . 34 8 Drop 17 | . 13 4 Fire 98 | 5 53 40 Melee . | . . . Ram . | . . . Kick . | . . . Crush 4 | . . 4 Escape Stasis . | . . . Rewire . | . . . Trap . | . . . Miscellaneous . | . . . Route ------- -11/Scrapyard -10/Materials (discovered 4 exits: *Mat x2 / [*Min x2]) -9/Materials (discovered 1 exit: Min) History --------- Turn | Location | Event 40 | -11/Scrapyard | Discovered new exit (range 15) 114 | -11/Scrapyard | Entered Materials 328 | -10/Materials | Build established: Mutant 550 | -10/Materials | Discovered new exit (range 8) 842 | -10/Materials | Crushed by falling debris 842 | -10/Materials | Core integrity fell below 50% 896 | -10/Materials | Discovered new exit (range 9) 947 | -10/Materials | Discovered new exit (range 5) 1321 | -10/Materials | Discovered new exit (range 16) 1348 | -10/Materials | Entered another Materials area 1348 | -9/Materials | Evolved 2 slots: Propulsion x1, Utility x1 1508 | -9/Materials | Identified exit to Mines 2197 | -9/Materials | Core integrity fell below 50% 2221 | -9/Materials | Core integrity fell below 20% 2247 | -9/Materials | Destroyed by Y-45 Defender with Heavy Assault Rifle Last Messages --------------- 02188_ M-13 Machinist repairs Imp. Ion Engine. 02188_ Wheel destroyed. 02194_ Particle Cannon destroyed. 02195_ U-05 Engineer builds a Wall. 02196_ Assault Rifle severed. 02197_ Critical hit (Burn: +37). 02197_ Lgt. Ion Engine destroyed. 02198_ M-13 Machinist repairs L-31 Rogue. 02201_ Assault Rifle severed. 02213_ Lgt. Treads destroyed. 02213_ Assault Rifle destroyed. 02219_ U-05 Engineer destroyed. 02232_ Lgt. Treads destroyed. 02238_ Assault Rifle destroyed. 02239_ Acquired Prototype Engine. 02239_ Identified Hvy. Ion Engine. 02246_ R-06 Scavenger collects Ion Engine. 02246_ M-13 Machinist repairs L-31 Rogue. 02247_ Structural Scanner destroyed. 02247_ Critical hit (Burn: +37). Map ----- +----------------------------------------------------+ | ?????????????????????????????????????????????????? | | ?????????????????????????????????????????????????? | | ?????????????????????????????????????????????????? | | ?????????????????????????????????????????????????? | | ?????????????????????????????????????????????????? | | ?????????????????????????????????????????????????? | | ?????????????????????????????????????????????????? | | ?????????????????????????????????????????????????? | | ?????????????????????????????????????????????????? | | ?????????????????????????????????????????????????? | | ?????????????????????????????????????????????????? | | ?????????????????????????????????????????????????? | | ?????????????????????????????????????????????????? | | ????????????????????????????? ### ######## | | ?????????????????????????????##################### | | ??????????????????????? ^^ % * | | ?????????????????????????????############/######## | | ?????????????????????????????########[!! T" #### | | ??????????????????????????????????###[! ##?? | | ??????????????????????????????????## [! ##?? | | ????????????????????????????????##### ##?? | | ????????????????????????????????################?? | | ????????????????????????????????## ######## | | ?????????????????? ######## [ " ######## | | ?????????????????################# [""" # ## | | ??????????+ rg***%@YYYlm +! """ # ## | | ?????????????????#################%| *+ T ## | | ??????????????????################ """ !# ## | | ????????????????????????????????## """ # ## | | ????????????????????????????????## """ ## ^ ### | | ????????????????????????????????## ## ^ # | | ????????????????????????????????############ ^ # | | ????????????????????????????????############ ^ # | | ????????????????????????????????########T### # | | ????????????????????????????????## # | | ????????????????????????????????## ^%+ | | ????????????????????????????????## ^ # | | ????????????????????????????????## ##+######## | | ????????????????????????????????## # #### | | ????????????????????????????????## # """ ???#### | | ????????????????????????????????## # """ ???#### | | ????????????????????????????????## # """ ###### | | ????????????????????????????????## # ###### | | ????????????????????????????????## # | + | | ????????????????????????????????## ######## | | ????????????????????????????????## ######## | | ????????????????????????????????## | | ????????????????????????????????## ########+#### | | ????????????????????????????????## ######## | | ????????????????????????????????## ##????## | +----------------------------------------------------+ Best States ------------- Heat Dissipation 28 Energy Generation 14 Energy Capacity 280 Matter Stores 300 Matter Capacity 300 Sight Range 16 Terrain Scan Density 10 Evasion (%) 41 Targeting Accuracy 6 Recoil Reduction 2 Item Schematics ----------------- None Robot Schematics ------------------ None Fabricated ------------ Nothing Alien Tech Used ----------------- None Achievements -------------- Quantum Hacking Challenges ------------ None Game ------ Seed SegregatorAntimatterLoader Manual? 0 Play Time 00:35:16 Cumulative 29.1 hours Start 2024.04.14 @ 17:17:43 End 2024.04.14 @ 17:52:06 Sessions 1 Manual Loads 0 Difficulty Rogue Special Mode None Game No. 22 Rogue 22 Adventurer 0 Explorer 0 Win Type - Total 0 Types 0/0/0/0/0/0/0/0/0 Lore% 23 Gallery% 27 Achievement% 22 Wizard Run 0 Options --------- Layout 1 ASCII 0 Keyboard 0 Movement Mouse Keybinds 0 Fullscreen 1 Font 24/Smallcaps Map View 50x35 Zoom Use 0% Tactical HUD 1 Map Filters NONE Filters NONE Steam 1 RUN: ba76b73e-f7f2-4ab2-a6f4-a5500397c255